Cogmind - Beta 13 @@@ ROGUE MODE // 2024.04.04 @ 20:13:43 Player: Nika Jay Result: Destroyed by S-27 Virus with Autogun Performance ------------- Evolutions (5) 2500 Regions Visited (12) 2400 Robots Destroyed (41) 205 Value Destroyed (1698) 1698 Prototype IDs (1) 20 Alien Tech Used (0) 0 Bonus (700) 700 TOTAL SCORE: 7523 Bonus ------- Entered Garrisons 200 Entered DSFs 500 Cogmind --------- Core Integrity 0/1000 Matter 205/300 Energy 37/100 System Corruption 11% Temperature Cool (0) Movement Walking (120) Location -5/Garrison Parts ------- > --- POWER (2) -------- (None) > --- PROPULSION (4) --- Carbon-fiber Leg > --- UTILITY (9) ------ Transmission Jammer > --- WEAPON (2) ------- (None) > --- INVENTORY (5) ---- Improved Datajack Peak State ------------ > --- POWER ------------ Light Deuterium Engine > --- PROPULSION ------- VTOL Module Improved VTOL Module Xenon Bombardment Thruster Xenon Bombardment Thruster > --- UTILITY ---------- Advanced Weight Redist. System Structural Scanner Targeting Computer Advanced Targeting Computer Melee Analysis Suite Transmission Jammer ECM Suite Reaction Control System > --- WEAPON ----------- Makeshift Axe Spear > --- INVENTORY -------- Light Nuclear Core Transmission Jammer Grenade Launcher Improved Datajack Scythe [Rating: 45] Favorites ----------- Power Light Nuclear Core Engine Light Ion Engine Power Core Light Nuclear Core Propulsion VTOL Module Leg Carbon-fiber Leg Wheel Wheel Hover Unit Hover Unit Flight Unit VTOL Module Utility ECM Suite Device ECM Suite Storage Small Storage Unit Processor Melee Analysis Suite Protection Light Armor Plating Weapon Makeshift Axe Energy Gun EM Shotgun Energy Cannon EM Pulse Cannon Ballistic Gun Assault Rifle Launcher Grenade Launcher Slashing Weapon Makeshift Axe Piercing Weapon Spear Special Melee Weapon Datajack Build | -11 -10 -10 -10 -9 -8 -7 -7 -7 -6 -6 -5 -5 ------- Run | Yrd Mat Min Exi Min Mat Fac Low Low Fac DSF Fac Gar Slots Evolved 10 | . . . . . 4 2 . . 2 . 2 . Power 1 | . . . . . . . . . . . 1 . Propulsion 2 | . . . . . 1 . . . 1 . . . Utility 7 | . . . . . 3 2 . . 1 . 1 . Weapon . | . . . . . . . . . . . . . Parts Attached 62 | 6 16 1 . . 15 11 1 . 2 2 1 7 Power 8 | 1 1 . . . 2 1 . . 1 . 1 1 Engine 3 | 1 1 . . . . . . . 1 . . . Core 5 | . . . . . 2 1 . . . . 1 1 Reactor . | . . . . . . . . . . . . . Propulsion 19 | 2 6 . . . 4 4 1 . 1 . . 1 Treads . | . . . . . . . . . . . . . Leg 1 | . . . . . . . . . . . . 1 Wheel 4 | 2 2 . . . . . . . . . . . Hover 2 | . 2 . . . . . . . . . . . Flight 12 | . 2 . . . 4 4 1 . 1 . . . Utility 17 | 1 5 . . . 4 5 . . . 1 . 1 Device 10 | . 2 . . . 3 3 . . . 1 . 1 Storage 3 | 1 2 . . . . . . . . . . . Processor 3 | . . . . . 1 2 . . . . . . Hackware . | . . . . . . . . . . . . . Protection 1 | . 1 . . . . . . . . . . . Artifact . | . . . . . . . . . . . . . Weapon 18 | 2 4 1 . . 5 1 . . . 1 . 4 Energy Gun 3 | . . . . . 2 1 . . . . . . Energy Cannon 2 | . . . . . 2 . . . . . . . Ballistic Gun 5 | 2 2 . . . 1 . . . . . . . Ballistic Cannon . | . . . . . . . . . . . . . Launcher 1 | . . . . . . . . . . . . 1 Special Weapon . | . . . . . . . . . . . . . Impact Weapon . | . . . . . . . . . . . . . Slashing Weapon 4 | . . 1 . . . . . . . . . 3 Piercing Weapon 1 | . . . . . . . . . . 1 . . Special Melee Weapon 2 | . 2 . . . . . . . . . . . Unidentified Prototypes 1 | . . . . . 1 . . . . . . . Parts Lost 19 | . 2 . . . . 2 1 . . 2 . 12 Power 2 | . . . . . . . . . . . . 2 Propulsion 5 | . 1 . . . . . 1 . . 1 . 2 Utility 9 | . 1 . . . . 1 . . . 1 . 6 Weapon 3 | . . . . . . 1 . . . . . 2 Highest Loss Streak 12 | . 2 . . . . 2 1 . . 2 . 12 To Critical Strikes . | . . . . . . . . . . . . . Average Slot Usage (%) 94 | . 96 100 100 100 97 92 99 100 93 100 82 55 Engine 5 | . 14 14 14 14 . . . . 3 6 5 3 Core 4 | . . . . . 8 7 7 7 3 . 5 3 Wheel 5 | . 22 . . . . . . . . . . . Flight 18 | . . 28 28 28 26 23 22 23 26 26 17 9 Device 22 | . 10 14 14 14 32 28 30 30 26 33 23 16 Storage 6 | . 14 14 14 14 3 . . . . . . . Processor 7 | . . . . . 7 18 23 23 20 20 17 12 Energy Gun 2 | . . . . . 4 5 7 7 6 . . . Ballistic Gun 8 | . 23 16 14 14 2 . . . . . . . Slashing Weapon 6 | . . 11 14 14 9 7 7 7 6 6 5 1 Special Melee Weapon 1 | . 4 . . . . . . . . . . . Naked Turns 4 | . . . . . . . . . . . . 4 Heaviest Build 19 | 11 19 13 13 13 18 16 15 15 15 16 19 19 Greatest Support 26 | 26 26 14 14 14 19 26 26 26 21 21 24 24 Greatest Overweight (x) 3 | . 3 . . . . . . . . . . . Average Overweight (x) . | . . . . . . . . . . . . . Largest Inventory Capacity 10 | 8 10 8 8 8 8 5 5 5 5 5 5 5 Average Capacity 6 | 7 9 8 8 8 6 5 5 5 5 5 5 5 Most Carried 10 | 2 10 8 8 8 8 5 5 5 5 5 5 5 Average Carried 6 | . 8 7 8 8 5 5 4 5 4 4 4 4 Final Capacity 8 | 8 8 8 8 8 5 5 5 5 5 5 5 5 Final Carried 8 | 2 8 8 8 8 5 5 5 5 4 5 5 1 Class Distribution -------------------- 50% | Infiltrator-Sprinter 25% | Mutant 17% | Sprinter 5% | Scavenger-Sprinter Dominant Class ---------------- Mutant | -10/Materials Sprinter | -10/Mines Sprinter | -10/Exiles Sprinter | -9/Mines Infiltrator-Sprinter | -8/Materials Infiltrator-Sprinter | -7/Factory Infiltrator-Sprinter | -7/Lower Caves Infiltrator-Sprinter | -7/Lower Caves Infiltrator-Sprinter | -6/Factory Infiltrator-Sprinter | -6/DSF Infiltrator-Sprinter | -5/Factory Infiltrator-Sprinter | -5/Garrison Resources | -11 -10 -10 -10 -9 -8 -7 -7 -7 -6 -6 -5 -5 ----------- Run | Yrd Mat Min Exi Min Mat Fac Low Low Fac DSF Fac Gar Matter Collected 875 | 268 135 . . 19 248 90 30 . . . . 85 Remotely . | . . . . . . . . . . . . . Salvage Created 1576 | 50 203 . . . 420 197 266 . . . . 440 Parts 64 | 1 8 . . . 23 9 7 . . . . 16 Haulers Intercepted 2 | . 1 . . . 1 . . . . . . . Recyclers Shooed 1 | . . . . . 1 . . . . . . . Parts Field Recycled . | . . . . . . . . . . . . . Retrieved Matter . | . . . . . . . . . . . . . Parts Self-Destructed 5 | . . . . . . . 5 . . . . . Prevented 2 | . . . . . . . 2 . . . . . Kills | -11 -10 -10 -10 -9 -8 -7 -7 -7 -6 -6 -5 -5 ------- Run | Yrd Mat Min Exi Min Mat Fac Low Low Fac DSF Fac Gar Combat Hostiles Destroyed 33 | . 4 . . . 5 4 5 . . . . 15 Melee 18 | . . . . . 5 4 4 . . . . 5 Guns 5 | . 4 . . . . . 1 . . . . . AOE 10 | . . . . . . . . . . . . 10 Classes Destroyed 10 | 1 2 . . . 4 1 1 . . . . 1 Worker 2 | . . . . . 2 . . . . . . . Hauler 2 | . 1 . . . 1 . . . . . . . Recycler 2 | 1 . . . . . 1 . . . . . . Watcher 2 | . . . . . 2 . . . . . . . Swarmer 9 | . . . . . . 3 1 . . . . 5 Grunt 16 | . 4 . . . 3 . 3 . . . . 6 Brawler 4 | . . . . . . . 1 . . . . 3 Duelist 1 | . . . . . . . . . . . . 1 Sentry 1 | . . . . . 1 . . . . . . . Hunter 2 | . . . . . 1 1 . . . . . . Best Kill Streak 15 | 1 2 . . . 3 3 5 . . . . 15 Combat Bots Only 15 | . 2 . . . 2 3 5 . . . . 15 Max Kills in Single Turn 3 | 1 1 . . . 1 1 1 . . . . 3 Gunslinging . | . . . . . . . . . . . . . Exploded 3 | . . . . . . . . . . . . 3 Melee 1 | . . . . . 1 1 1 . . . . 1 Uniques/NPCs Destroyed . | . . . . . . . . . . . . . Combat | -11 -10 -10 -10 -9 -8 -7 -7 -7 -6 -6 -5 -5 -------- Run | Yrd Mat Min Exi Min Mat Fac Low Low Fac DSF Fac Gar Hostile Shots Fired 223 | . 33 . . 1 13 44 14 3 . 3 . 112 Missed 97 | . 8 . . . 10 22 5 3 . 2 . 47 Damage Taken 2431 | . 424 . . 11 44 279 130 . . 38 . 1505 Core 1330 | . 201 . . . 23 28 57 . . 11 . 1010 Absorbed by Shields 40 | . . . . . . . . . . . . 40 Core Remaining (%) 79 | 100 . . . 19 95 . . 87 . 98 . . Volleys Fired 47 | 2 23 . . . 1 . 7 . . . . 14 Largest 2 | 2 2 . . . 1 . 1 . . . . 1 Hottest 45 | 40 40 . . . 45 . 45 . . . . 30 Shots Fired 72 | 4 46 . . . 1 . 7 . . . . 14 Gun 58 | 4 46 . . . 1 . 7 . . . . . Cannon . | . . . . . . . . . . . . . Launcher 14 | . . . . . . . . . . . . 14 Special . | . . . . . . . . . . . . . Kinetic 50 | 4 46 . . . . . . . . . . . Thermal . | . . . . . . . . . . . . . Explosive 14 | . . . . . . . . . . . . 14 Electromagnetic 8 | . . . . . 1 . 7 . . . . . Robot Hit Streak 16 | 4 15 . . . 4 . 6 . . . . 16 Robot Miss Streak 3 | . 1 . . . 1 . 3 . . . . 1 Penetration Max . | . . . . . . . . . . . . . Secondary Targets 1 | . 1 . . . . . . . . . . . Max Gunslinging Chain 1 | . 1 . . . . . . . . . . . Shots Hit Robots 113 | 4 42 . . . 16 13 16 . . . . 22 Core Hits 75 | 2 13 . . . 9 5 7 . . . . 39 Critical Kills 1 | . 1 . . . . . . . . . . . Critical Parts Destroyed . | . . . . . . . . . . . . . Critical Strikes 5 | . 1 . . . . 1 . . . . . 3 Destroy 1 | . 1 . . . . . . . . . . . Sever 2 | . . . . . . 1 . . . . . 1 Impale 2 | . . . . . . . . . . . . 2 Melee Attacks 96 | . 8 . . . 35 23 14 . . . . 16 Impact . | . . . . . . . . . . . . . Slashing 76 | . . . . . 35 23 14 . . . . 4 Piercing 12 | . . . . . . . . . . . . 12 Sneak Attacks 8 | . 3 . . . 4 1 . . . . . . Combat Hostiles . | . . . . . . . . . . . . . Follow-up Attacks . | . . . . . . . . . . . . . Damage Inflicted 4320 | 39 398 . . . 876 570 486 . . . . 1951 Guns 542 | 39 398 . . . 10 . 95 . . . . . Cannons . | . . . . . . . . . . . . . Explosions 1614 | . . . . . . . . . . . . 1614 Melee 2155 | . . . . . 866 570 391 . . . . 328 Ramming 9 | . . . . . . . . . . . . 9 Kinetic 437 | 39 398 . . . . . . . . . . . Thermal . | . . . . . . . . . . . . . Explosive 1614 | . . . . . . . . . . . . 1614 Electromagnetic 105 | . . . . . 10 . 95 . . . . . Impact . | . . . . . . . . . . . . . Slashing 1849 | . . . . . 866 570 391 . . . . 22 Piercing 306 | . . . . . . . . . . . . 306 Highest Corruption 11 | . . . . . . . . . . . . 11 Average Corruption 10 | . . . . . . . . . . . . 10 Corruption Purged . | . . . . . . . . . . . . . Corruption Blocked . | . . . . . . . . . . . . . Effects 1 | . . . . . . . . . . . . 1 Message Errors 1 | . . . . . . . . . . . . 1 Overload Shots . | . . . . . . . . . . . . . Overflow Damage 287 | . . . . . 195 18 54 . . . . 20 Projectiles . | . . . . . . . . . . . . . Explosions . | . . . . . . . . . . . . . Melee 287 | . . . . . 195 18 54 . . . . 20 Knockbacks . | . . . . . . . . . . . . . Impact . | . . . . . . . . . . . . . Kinetic . | . . . . . . . . . . . . . Secondary . | . . . . . . . . . . . . . Self-Inflicted Damage 13 | . . . . . . . . . . . . 13 Shots 1 | . . . . . . . . . . . . 1 Rammed 2 | . . . . . . . . . . . . 2 Targets Rammed 3 | . . . . . . . . . . . . 3 Kicked 1 | . . . . . . . . . . . . 1 Crushed . | . . . . . . . . . . . . . Highest Temperature 57 | . 36 . . . 2 . 57 . . . . 20 Average Temperature 12 | . 11 . . . 1 . 18 . . . . 9 Received Heat Transfer 429 | . 198 . . 6 . 27 108 . . . . 90 Siege Activations . | . . . . . . . . . . . . . Robots Corrupted . | . . . . . . . . . . . . . Combat Hostiles . | . . . . . . . . . . . . . Parts Fried . | . . . . . . . . . . . . . Impact Corruptions . | . . . . . . . . . . . . . Robots Melted . | . . . . . . . . . . . . . Combat Hostiles . | . . . . . . . . . . . . . Parts Melted . | . . . . . . . . . . . . . Heat Transferred . | . . . . . . . . . . . . . Parts Sabotaged . | . . . . . . . . . . . . . Parts Stolen . | . . . . . . . . . . . . . Parts Stripped . | . . . . . . . . . . . . . Power Chain Reactions . | . . . . . . . . . . . . . Alert | -11 -10 -10 -10 -9 -8 -7 -7 -7 -6 -6 -5 -5 ------- Run | Yrd Mat Min Exi Min Mat Fac Low Low Fac DSF Fac Gar Peak Influence 397 | 5 165 8 . 15 257 328 . . 157 109 60 397 Initial 157 | . 3 8 . . 5 116 . . 157 109 46 42 Average 126 | . 65 8 . 7 122 249 . . 157 107 54 241 Maximum Alert Level 1 | . . . . . 1 1 . . . . . 1 Low Security (%) 74 | 100 100 100 . 100 82 16 . . 100 100 100 39 Level 1 25 | . . . . . 17 83 . . . . . 60 Level 2 . | . . . . . . . . . . . . . Level 3 . | . . . . . . . . . . . . . Level 4 . | . . . . . . . . . . . . . Level 5 . | . . . . . . . . . . . . . High Security . | . . . . . . . . . . . . . Max Security . | . . . . . . . . . . . . . Squads Dispatched 3 | . . . . . 1 1 . . . 1 . . Investigation . | . . . . . . . . . . . . . Extermination . | . . . . . . . . . . . . . Reinforcement 3 | . . . . . 1 1 . . . 1 . . Assault . | . . . . . . . . . . . . . Garrison . | . . . . . . . . . . . . . Intercept . | . . . . . . . . . . . . . Searches Triggered . | . . . . . . . . . . . . . Construction Impeded . | . . . . . . . . . . . . . Haulers Reinforced . | . . . . . . . . . . . . . Active Scanning Responses . | . . . . . . . . . . . . . Cargo Convoy Interrupts . | . . . . . . . . . . . . . Stealth | -11 -10 -10 -10 -9 -8 -7 -7 -7 -6 -6 -5 -5 --------- Run | Yrd Mat Min Exi Min Mat Fac Low Low Fac DSF Fac Gar Distress Signals . | . . . . . . . . . . . . . Communications Jammed . | . . . . . . . . . . . . . Distress Signals . | . . . . . . . . . . . . . Times Spotted 98 | . 20 . . 5 14 15 9 3 . 2 . 30 Peak Tracking Total 13 | . 6 . . 6 5 3 7 3 . 2 . 13 Tactical Retreats 16 | . 4 . . . 4 5 1 . . . . 2 Traps | -11 -10 -10 -10 -9 -8 -7 -7 -7 -6 -6 -5 -5 ------- Run | Yrd Mat Min Exi Min Mat Fac Low Low Fac DSF Fac Gar Traps Triggered 3 | . . . . . . . . . . 1 . 2 Indirectly . | . . . . . . . . . . . . . Trap Hack Attempts . | . . . . . . . . . . . . . Triggered . | . . . . . . . . . . . . . Disarmed . | . . . . . . . . . . . . . Reprogrammed . | . . . . . . . . . . . . . Reused . | . . . . . . . . . . . . . Traps Extracted . | . . . . . . . . . . . . . Installed . | . . . . . . . . . . . . . Triggered . | . . . . . . . . . . . . . Machines | -11 -10 -10 -10 -9 -8 -7 -7 -7 -6 -6 -5 -5 ---------- Run | Yrd Mat Min Exi Min Mat Fac Low Low Fac DSF Fac Gar Machines Disabled 2 | . . . . . 1 . . . . . . 1 Max in Single Turn 1 | . . . . . 1 . . . . . . 1 Garrison Relay 1 | . . . . . . . . . . . . 1 Machines Repaired . | . . . . . . . . . . . . . Machines Dismantled . | . . . . . . . . . . . . . Machines Sabotaged . | . . . . . . . . . . . . . Overloaded Fab Kills . | . . . . . . . . . . . . . Hacking | -11 -10 -10 -10 -9 -8 -7 -7 -7 -6 -6 -5 -5 --------- Run | Yrd Mat Min Exi Min Mat Fac Low Low Fac DSF Fac Gar Machines Accessed 20 | . 4 . 4 . 5 5 . . 1 . 1 . Terminals 14 | . 4 . . . 4 5 . . 1 . . . Fabricators . | . . . . . . . . . . . . . Repair Stations . | . . . . . . . . . . . . . Recycling Units 1 | . . . . . 1 . . . . . . . Scanalyzers . | . . . . . . . . . . . . . Garrison Access 1 | . . . . . . . . . . . 1 . Total Hacks 27 | . 7 . 4 . 7 6 . . 2 . 1 . Successful 9 | . 1 . 4 . 1 1 . . 1 . 1 . Failed 18 | . 6 . . . 6 5 . . 1 . . . Catastrophic 12 | . 4 . . . 3 5 . . . . . . Database Lockouts . | . . . . . . . . . . . . . Manual 18 | . 6 . 1 . 6 5 . . . . . . Terminals 21 | . 7 . . . 6 6 . . 2 . . . Fabricators . | . . . . . . . . . . . . . Repair Stations . | . . . . . . . . . . . . . Recycling Units 1 | . . . . . 1 . . . . . . . Scanalyzers . | . . . . . . . . . . . . . Garrison Access 1 | . . . . . . . . . . . 1 . Terminal Hacks 7 | . 1 . 4 . . 1 . . 1 . . . Record 4 | . . . 4 . . . . . . . . . Open DSF 2 | . . . . . . 1 . . 1 . . . Branch Access Points 1 | . 1 . . . . . . . . . . . Fabricator Hacks . | . . . . . . . . . . . . . Repair Station Hacks . | . . . . . . . . . . . . . Recycling Unit Hacks 1 | . . . . . 1 . . . . . . . Report Inventory 1 | . . . . . 1 . . . . . . . Scanalyzer . | . . . . . . . . . . . . . Garrison Access Hacks 1 | . . . . . . . . . . . 1 . Unlock Access 1 | . . . . . . . . . . . 1 . Unauthorized Hacks . | . . . . . . . . . . . . . Terminals . | . . . . . . . . . . . . . Fabricators . | . . . . . . . . . . . . . Repair Stations . | . . . . . . . . . . . . . Recycling Units . | . . . . . . . . . . . . . Scanalyzers . | . . . . . . . . . . . . . Garrison Access . | . . . . . . . . . . . . . Data Cores Recovered . | . . . . . . . . . . . . . Used . | . . . . . . . . . . . . . Hacking Detections 14 | . 3 . . . 5 4 . . 1 . 1 . Full Trace Events . | . . . . . . . . . . . . . Feedback Events . | . . . . . . . . . . . . . Feedback Blocked . | . . . . . . . . . . . . . Robot Schematics Acquired . | . . . . . . . . . . . . . Robots Built . | . . . . . . . . . . . . . Authchips . | . . . . . . . . . . . . . Time . | . . . . . . . . . . . . . Total Robot Build Rating . | . . . . . . . . . . . . . Part Schematics Acquired . | . . . . . . . . . . . . . Parts Built . | . . . . . . . . . . . . . Authchips . | . . . . . . . . . . . . . Time . | . . . . . . . . . . . . . Total Part Build Rating . | . . . . . . . . . . . . . Parts Repaired . | . . . . . . . . . . . . . Time . | . . . . . . . . . . . . . Parts Recycled . | . . . . . . . . . . . . . Recycled Matter . | . . . . . . . . . . . . . Retrieved Matter . | . . . . . . . . . . . . . Retrieved Components . | . . . . . . . . . . . . . Parts Scanalyzed . | . . . . . . . . . . . . . Part Schematics Acquired . | . . . . . . . . . . . . . Parts Damaged . | . . . . . . . . . . . . . Bothacking | -11 -10 -10 -10 -9 -8 -7 -7 -7 -6 -6 -5 -5 ------------ Run | Yrd Mat Min Exi Min Mat Fac Low Low Fac DSF Fac Gar Used RIF Installer . | . . . . . . . . . . . . . Robots Hacked 3 | . 3 . . . . . . . . . . . Non-combat 3 | . 3 . . . . . . . . . . . Combat . | . . . . . . . . . . . . . Robot Hacks Applied 3 | . 3 . . . . . . . . . . . parse_system 2 | . 2 . . . . . . . . . . . no_distress 1 | . 1 . . . . . . . . . . . Relay Couplers Released 4 | . . . . . . . . . . . . 4 Machine Destruction 4 | . . . . . . . . . . . . 4 Fabnet Peak Effective % . | . . . . . . . . . . . . . Robots Rewired . | . . . . . . . . . . . . . Allies Hacked . | . . . . . . . . . . . . . Hacks Repelled . | . . . . . . . . . . . . . Allies | -11 -10 -10 -10 -9 -8 -7 -7 -7 -6 -6 -5 -5 -------- Run | Yrd Mat Min Exi Min Mat Fac Low Low Fac DSF Fac Gar Total Allies 2 | . . 2 . . . . . . . . . . Largest Group 2 | . . 2 . . . . . . . . . . Highest-Rated Group 39 | . . 39 . . . . . . . . . . Highest-Rated Ally 31 | . . 31 . . . . . . . . . . Total Orders . | . . . . . . . . . . . . . Ally Attacks . | . . . . . . . . . . . . . Total Damage . | . . . . . . . . . . . . . Kills . | . . . . . . . . . . . . . Allies Corrupted . | . . . . . . . . . . . . . Allies Melted . | . . . . . . . . . . . . . Intel | -11 -10 -10 -10 -9 -8 -7 -7 -7 -6 -6 -5 -5 ------- Run | Yrd Mat Min Exi Min Mat Fac Low Low Fac DSF Fac Gar Robot Analysis Total . | . . . . . . . . . . . . . Derelict Logs Recovered 3 | . . 2 . 1 . . . . . . . . Drone Launches . | . . . . . . . . . . . . . Drone Recoveries . | . . . . . . . . . . . . . Exploration | -11 -10 -10 -10 -9 -8 -7 -7 -7 -6 -6 -5 -5 ------------- Run | Yrd Mat Min Exi Min Mat Fac Low Low Fac DSF Fac Gar Turns Passed 2169 | 53 482 62 241 59 640 304 135 3 20 13 16 141 Spaces Moved 3741 | 42 314 183 752 180 1109 655 285 10 59 29 45 78 Core 20 | 2 . . . . . . . . . . . 18 Treads . | . . . . . . . . . . . . . Legs . | . . . . . . . . . . . . . Wheels 251 | 40 211 . . . . . . . . . . . Hover 84 | . 84 . . . . . . . . . . . Flight 3386 | . 19 183 752 180 1109 655 285 10 59 29 45 60 Fastest Speed 28 | 50 32 32 32 32 29 29 32 32 28 28 30 30 Average Speed 35 | 87 78 32 32 32 29 29 32 32 28 28 30 35 Slowest Speed 240 | 90 240 32 32 32 29 32 34 32 28 30 30 50 Overloaded Moves . | . . . . . . . . . . . . . Propulsion Burnouts . | . . . . . . . . . . . . . Robots Hopped 6 | . . . . . 5 1 . . . . . . Cave-ins Triggered . | . . . . . . . . . . . . . Exploration Rate (%) 31 | 3 42 38 90 55 58 14 50 4 2 41 1 15 Regions Visited 12 Branch Regions 5 Pre-discovered Areas 2 | . . 2 . . . . . . . . . . Known Exits Taken 3 | . 1 . . . . . . . 1 . 1 . Unknown Exits Taken 8 | 1 . 1 1 1 1 1 1 1 . . . . Scrap Searched 3 | . . . . 2 . . 1 . . . . . Spaces Dug 18 | . . . . . 15 2 . . . . . 1 Terrain Destroyed 73 | . . . . . 15 2 . . . . . 56 Melee 18 | . . . . . 15 2 . . . . . 1 Projectile . | . . . . . . . . . . . . . AOE 55 | . . . . . . . . . . . . 55 Terrain Rammed . | . . . . . . . . . . . . . Walls Destroyed . | . . . . . . . . . . . . . Machines Disabled . | . . . . . . . . . . . . . Actions | -11 -10 -10 -10 -9 -8 -7 -7 -7 -6 -6 -5 -5 --------- Run | Yrd Mat Min Exi Min Mat Fac Low Low Fac DSF Fac Gar Total 4411 | 51 508 185 751 181 1388 740 307 9 61 32 46 152 Wait 380 | . 114 . . . 214 44 . . . . . 8 Move 3717 | 41 313 182 751 179 1098 652 284 9 58 28 44 78 Hop 6 | . . . . . 5 1 . . . . . . Pick Up 29 | 2 15 1 . 1 6 1 1 . . 1 1 . Fast Attach 28 | 6 6 . . . 6 6 . . . 2 . 2 Attach 14 | . 3 . . . 4 . 1 . 1 . 1 4 Detach 7 | . 6 . . . 1 . . . . . . . Swap 20 | . 7 1 . . 5 5 . . 1 . . 1 Drop 38 | . 13 1 . 1 13 8 . . 1 1 . . Fire 47 | 2 23 . . . 1 . 7 . . . . 14 Melee 96 | . 8 . . . 35 23 14 . . . . 16 Ram 2 | . . . . . . . . . . . . 2 Kick 1 | . . . . . . . . . . . . 1 Crush . | . . . . . . . . . . . . . Escape Stasis 26 | . . . . . . . . . . . . 26 Rewire . | . . . . . . . . . . . . . Trap . | . . . . . . . . . . . . . Miscellaneous . | . . . . . . . . . . . . . Route ------- -11/Scrapyard -10/Materials (discovered 2 exits: [*Mat] / *Min) -10/Mines -10/Exiles (discovered 2 exits: [*Min x2]) -9/Mines -8/Materials -7/Factory (discovered 2 exits: Sto / [*Low]) -7/Lower Caves -7/Lower Caves -6/Factory -6/DSF -5/Factory -5/Garrison History --------- Turn | Location | Event 15 | -11/Scrapyard | Discovered new exit (range 15) 54 | -11/Scrapyard | Entered Materials 199 | -10/Materials | Discovered new exit (range 16) 316 | -10/Materials | Build established: Mutant 399 | -10/Materials | Core integrity fell below 50% 411 | -10/Materials | Core integrity fell below 20% 486 | -10/Materials | Identified exit to Mines 536 | -10/Materials | Entered Mines 539 | -10/Mines | A weapon hastily lodged in a ceiling crevice suddenly fell to the ground 577 | -10/Mines | Learned location of Mines (-9) 581 | -10/Mines | Learned location of Zion (-6) 596 | -10/Mines | Deemed a non-threat by the Exiles lab entrance 596 | -10/Mines | Discovered new exit (range 5) 598 | -10/Mines | Entered Exiles 598 | -10/Exiles | Found Exiles lab abandoned 711 | -10/Exiles | Discovered new exit (range 12) 748 | -10/Exiles | Discovered new exit (range 14) 828 | -10/Exiles | Build established: Sprinter 839 | -10/Exiles | Entered Mines 846 | -9/Mines | Assembled infested the area 892 | -9/Mines | Discovered new exit (range 7) 898 | -9/Mines | Entered Materials 898 | -8/Materials | Evolved 4 slots: Propulsion x1, Utility x3 1192 | -8/Materials | Build established: Infiltrator-Sprinter 1355 | -8/Materials | Discovered new exit (range 9) 1538 | -8/Materials | Entered Factory 1538 | -7/Factory | Evolved 2 slots: Utility x2 1539 | -7/Factory | Identified exit to Storage 1719 | -7/Factory | Discovered new exit (range 8) 1842 | -7/Factory | Entered Lower Caves 1914 | -7/Lower Caves | Attracted the attention of an 0b10 outpost 1975 | -7/Lower Caves | Discovered new exit (range 6) 1977 | -7/Lower Caves | Entered another Lower Caves area 1977 | -7/Lower Caves | Discovered new exit (range 8) 1980 | -7/Lower Caves | Entered Factory 1980 | -6/Factory | Evolved 2 slots: Propulsion x1, Utility x1 2000 | -6/Factory | Identified exit to DSF 2000 | -6/Factory | Entered DSF 2010 | -6/DSF | Discovered new exit (range 11) 2013 | -6/DSF | Entered Factory 2013 | -5/Factory | Evolved 2 slots: Power x1, Utility x1 2019 | -5/Factory | Identified exit to Garrison 2029 | -5/Factory | Entered Garrison 2134 | -5/Garrison | Triggered checkpoint 2134 | -5/Garrison | Core integrity fell below 50% 2134 | -5/Garrison | System corruption reached 10% 2153 | -5/Garrison | Garrison Relay disabled 2155 | -5/Garrison | Core integrity fell below 20% 2156 | -5/Garrison | Destroyed 15 combat bots 2170 | -5/Garrison | Destroyed by S-27 Virus with Autogun Last Messages --------------- 02146_ Field strength at 61. 02147_ Field strength at 51. 02148_ Field strength at 38. 02149_ Field strength at 20. 02150_ Field strength at 6. 02151_ Stasis field depleted. 02153_ Garrison Relay disabled. 02153_ Relay Coupler [Demolisher] tumbles out of relay unit. 02153_ Relay Coupler [Grunt] tumbles out of relay unit. 02153_ Relay Coupler [Sentry] tumbles out of relay unit. 02154_ Adv. Targeting Computer destroyed. 02156_ Mak. Axe severed. 02157_ Acquired Mak. Axe. 02159_ L-41 Fighter Carbon-fiber Leg severed. 02161_ Mak. Axe severed. 02164_ Scythe severed. 02164_ Slammed into L-41 Fighter. 02168_ Acquired Carbon-fiber Leg. 02169_ Kicked S-27 Virus out of the way. [Achievement: Just Browsing] Map ----- +----------------------------------------------------+ | ?????????????????????????????????????????????????? | | ?????????????????????????????????????????????????? | | ?????????????????????????????????????????????????? | | ?????????????????????????????????????????????????? | | ?????????????????????????????????????????????????? | | ?????????????????????????????????????????????????? | | ?????????????????????????????????????????????????? | | ?????????????????????????????????????????????????? | | ?????????????????????????????????????????????????? | | ?????????????????????????????????????????????????? | | ?????????????????????????????????????????????????? | | ?????????????????????????????????????????????????? | | ?????????????????????????????????????????????????? | | ?????????????????????????????????????????????????? | | ?????????????????????????????????????????????????? | | ?????????????????????????????????????????????????? | | ?????????????????????????????????????????????????? | | ?????????????????????????????????????????????????? | | ?????????????????????????????????????????????????? | | ?????????????????????????????????????????????????? | | ?????????????????????????????????????????????????? | | ?????????????????????????????????????????????????? | | ?????????????????????????????????????????????????? | | ????????????????#####??#######???????????????????? | | ????????????????# "#??#s"l "#???????????????????? | | ????????????##### "%#####@!!##???????????????????? | | ????????????# * " bs!s #???????????????????? | | ???????###??# b s #???????????????????? | | ????#### #### ############++#???????????????????? | | ##### # #?????????????????????????????????? | | # ## #?????????????????????????????????? | | # *# *#* #########?????????????????????????? | | [% =%!= ^ ??????????????????? | | [ %!= ??????????????????? | | * != ^ ??????????????????? | | ### # ## # #################???????????????????? | | ??### # #???????????????????????????????????? | | ??? # ##???????????????????????????????????? | | ? #????????????????????????????????????? | | #####????????????????????????????????????? | | ????????????????????????????????????????? | | ##???????????????????????????????????????? | | #????????????????????????????????????????? | | #????????????????????????????????????????? | | #########????????????????????????????????????????? | | ?????????????????????????????????????????????????? | | ?????????????????????????????????????????????????? | | ?????????????????????????????????????????????????? | | ?????????????????????????????????????????????????? | | ?????????????????????????????????????????????????? | +----------------------------------------------------+ Best States ------------- Heat Dissipation 40 Energy Generation 23 Energy Capacity 200 Matter Stores 300 Matter Capacity 300 Sight Range 16 Terrain Scan Density 10 ECM Strength 1 Jamming Range 12 Additional Mass Support 9 Armor Coverage 150 Evasion (%) 72 Targeting Accuracy 13 Melee Accuracy 5 Item Schematics ----------------- None Robot Schematics ------------------ None Fabricated ------------ Nothing Alien Tech Used ----------------- None Achievements -------------- Just Browsing Challenges ------------ None Game ------ Seed SeismicTerrabombGenerator Manual? 0 Play Time 01:18:25 Cumulative 23.0 hours Start 2024.04.02 @ 12:51:50 End 2024.04.04 @ 20:13:43 Sessions 5 Manual Loads 0 Difficulty Rogue Special Mode None Game No. 21 Rogue 17 Adventurer 2 Explorer 2 Win Type - Total 0 Types 0/0/0/0/0/0/0/0/0 Lore% 13 Gallery% 25 Achievement% 23 Wizard Run 0 Options --------- Layout 0 ASCII 0 Keyboard 1 Movement Arrows Keybinds 0 Fullscreen 2 Font 18/SmallcapsGlow Map View 76x50 Zoom Use 0% Tactical HUD 1 Map Filters NONE Filters NONE Steam 1 RUN: a60463db-ea57-4e9b-b7d7-6d9edd3feab4